Cogmind - Beta 12 X1 @@@ ROGUE MODE // 2022.07.02 @ 09:40:42 Player: Lyra Result: Destroyed by G-47 Trooper with Particle Gun Performance ------------- Evolutions (0) 0 Regions Visited (1) 200 Robots Destroyed (13) 65 Value Destroyed (308) 308 Prototype IDs (0) 0 Alien Tech Used (0) 0 Bonus (0) 0 TOTAL SCORE: 573 Bonus ------- None Cogmind --------- Core Integrity 0/250 Matter 219/300 Energy 72/100 System Corruption 1% Temperature Cool (30) Movement Walking (260) Ox2 Location -10/Materials Parts ------- > --- POWER (1) -------- (None) > --- PROPULSION (2) --- Improved Aluminum Leg > --- UTILITY (2) ------ Heat Sink Large Storage Unit > --- WEAPON (2) ------- Particle Gun Grenade Launcher > --- INVENTORY (15) --- Light Ion Engine Light Treads Light Treads Improved Aluminum Leg Improved Aluminum Leg Small Battery (100) Salvage Targeting Computer Salvage Targeting Computer Particle Gun Light Cannon Grenade Launcher Grenade Launcher Grenade Launcher Peak State ------------ > --- POWER ------------ Light Nuclear Core > --- PROPULSION ------- Improved Aluminum Leg Improved Aluminum Leg > --- UTILITY ---------- Heat Sink Large Storage Unit > --- WEAPON ----------- Particle Gun Particle Gun > --- INVENTORY -------- Light Ion Engine Light Treads Light Treads Aluminum Leg Aluminum Leg Aluminum Leg Aluminum Leg Improved Aluminum Leg Improved Aluminum Leg Small Battery Salvage Targeting Computer Salvage Targeting Computer Particle Gun Particle Gun Light Cannon [Rating: 15] Favorites ----------- Power Light Nuclear Core Engine Ion Engine Power Core Light Nuclear Core Propulsion Aluminum Leg Leg Aluminum Leg Utility Large Storage Unit Device Heat Sink Storage Large Storage Unit Weapon Small Laser Energy Gun Small Laser Ballistic Gun Assault Rifle Ballistic Cannon Light Cannon Launcher Grenade Launcher Build | -11 -10 ------- Run | Scr Mat Slots Evolved . | . . Power . | . . Propulsion . | . . Utility . | . . Weapon . | . . Parts Attached 17 | . 17 Power 1 | . 1 Engine . | . . Core 1 | . 1 Reactor . | . . Propulsion 5 | . 5 Treads . | . . Leg 5 | . 5 Wheel . | . . Hover . | . . Flight . | . . Utility 2 | . 2 Device 1 | . 1 Storage 1 | . 1 Processor . | . . Hackware . | . . Protection . | . . Artifact . | . . Weapon 9 | . 9 Energy Gun 6 | . 6 Energy Cannon . | . . Ballistic Gun 1 | . 1 Ballistic Cannon 1 | . 1 Launcher 1 | . 1 Special Weapon . | . . Impact Weapon . | . . Slashing Weapon . | . . Piercing Weapon . | . . Special Melee Weapon . | . . Unidentified Prototypes . | . . Parts Lost 5 | . 5 Power 2 | . 2 Propulsion 2 | . 2 Utility . | . . Weapon 1 | . 1 Highest Loss Streak 2 | . 2 To Critical Strikes . | . . Average Slot Usage (%) 94 | . 94 Engine 2 | . 2 Core 10 | . 10 Leg 27 | . 27 Device 11 | . 11 Storage 14 | . 14 Energy Gun 24 | . 24 Ballistic Gun 1 | . 1 Ballistic Cannon 1 | . 1 Naked Turns . | . . Heaviest Build 32 | 13 32 Greatest Support 26 | 20 26 Greatest Overweight (x) 2 | . 2 Average Overweight (x) . | . . Largest Inventory Capacity 15 | . 15 Average Capacity 14 | . 14 Most Carried 15 | . 15 Average Carried 9 | . 9 Final Capacity 15 | 8 15 Final Carried 13 | 6 13 Class Distribution -------------------- 100% | Mutant Dominant Class ---------------- Mutant | -10/Materials Resources | -11 -10 ----------- Run | Scr Mat Matter Collected 374 | 200 174 Remotely . | . . Salvage Created 522 | . 522 Parts 31 | . 31 Haulers Intercepted 1 | . 1 Recyclers Shooed 1 | . 1 Parts Field Recycled . | . . Retrieved Matter . | . . Parts Self-Destructed . | . . Prevented . | . . Kills | -11 -10 ------- Run | Scr Mat Combat Hostiles Destroyed 8 | . 8 Guns 8 | . 8 Classes Destroyed 4 | . 4 Worker 3 | . 3 Builder 1 | . 1 Hauler 1 | . 1 Grunt 8 | . 8 Best Kill Streak 2 | . 2 Combat Bots Only 2 | . 2 Max Kills in Single Turn 1 | . 1 Gunslinging . | . . Exploded . | . . Melee . | . . Uniques/NPCs Destroyed . | . . Combat | -11 -10 -------- Run | Scr Mat Damage Taken 1070 | . 1070 Core 260 | . 260 Absorbed by Shields . | . . Core Remaining (%) 100 | 100 . Volleys Fired 63 | . 63 Largest 2 | . 2 Hottest 130 | . 130 Shots Fired 122 | . 122 Gun 119 | . 119 Cannon 1 | . 1 Launcher 2 | . 2 Special . | . . Kinetic 20 | . 20 Thermal 81 | . 81 Explosive 2 | . 2 Electromagnetic 19 | . 19 Robot Hit Streak 12 | . 12 Robot Miss Streak 7 | . 7 Penetration Max . | . . Secondary Targets . | . . Shots Hit Robots 65 | . 65 Core Hits 24 | . 24 Critical Kills . | . . Critical Parts Destroyed . | . . Critical Strikes 3 | . 3 Burn 3 | . 3 Melee Attacks . | . . Impact . | . . Slashing . | . . Piercing . | . . Sneak Attacks . | . . Combat Hostiles . | . . Follow-up Attacks . | . . Damage Inflicted 1062 | . 1062 Guns 925 | . 925 Cannons . | . . Explosions 124 | . 124 Melee . | . . Ramming 13 | . 13 Kinetic 143 | . 143 Thermal 611 | . 611 Explosive 124 | . 124 Electromagnetic 171 | . 171 Impact . | . . Slashing . | . . Piercing . | . . Highest Corruption 1 | . 1 Average Corruption 1 | . 1 Corruption Purged . | . . Corruption Blocked . | . . Effects 7 | . 7 Message Errors 2 | . 2 Matter Fused 2 | . 2 Heat Flow Errors 1 | . 1 Energy Discharges 1 | . 1 Misfires 1 | . 1 Overload Shots . | . . Overflow Damage . | . . Projectiles . | . . Explosions . | . . Melee . | . . Knockbacks . | . . Impact . | . . Kinetic . | . . Secondary . | . . Self-Inflicted Damage 79 | . 79 Shots 2 | . 2 Rammed . | . . Targets Rammed 11 | . 11 Kicked 11 | . 11 Crushed . | . . Highest Temperature 417 | . 417 Average Temperature 88 | . 88 Received Heat Transfer 615 | . 615 Effects 3 | . 3 Interference 1 | . 1 Matter Decay 1 | . 1 Short Circuit 1 | . 1 Siege Activations . | . . Robots Corrupted . | . . Combat Hostiles . | . . Parts Fried . | . . Impact Corruptions . | . . Robots Melted . | . . Combat Hostiles . | . . Parts Melted 1 | . 1 Heat Transferred 1623 | . 1623 Parts Sabotaged . | . . Parts Stolen . | . . Parts Stripped . | . . Power Chain Reactions . | . . Missiles Intercepted . | . . Alert | -11 -10 ------- Run | Scr Mat Peak Influence 172 | . 172 Initial . | . . Average 51 | . 51 Maximum Alert Level . | . . Low Security (%) 100 | . 100 Level 1 . | . . Level 2 . | . . Level 3 . | . . Level 4 . | . . Level 5 . | . . High Security . | . . Max Security . | . . Squads Dispatched 3 | . 3 Investigation 2 | . 2 Extermination . | . . Reinforcement 1 | . 1 Assault . | . . Garrison . | . . Intercept . | . . Searches Triggered . | . . Construction Impeded . | . . Haulers Reinforced . | . . Active Scanning Responses . | . . Cargo Convoy Interrupts . | . . Stealth | -11 -10 --------- Run | Scr Mat Distress Signals 1 | . 1 Communications Jammed . | . . Distress Signals . | . . Times Spotted 19 | . 19 Peak Tracking Total 5 | . 5 Tactical Retreats 1 | . 1 Traps | -11 -10 ------- Run | Scr Mat Traps Triggered 1 | . 1 Indirectly . | . . Trap Hack Attempts . | . . Triggered . | . . Disarmed . | . . Reprogrammed . | . . Reused . | . . Traps Extracted . | . . Installed . | . . Triggered . | . . Machines | -11 -10 ---------- Run | Scr Mat Machines Disabled . | . . Max in Single Turn . | . . Machines Sabotaged . | . . Garrisons Compromised . | . . Overloaded Fab Kills . | . . Hacking | -11 -10 --------- Run | Scr Mat Machines Accessed 3 | . 3 Terminals 3 | . 3 Fabricators . | . . Repair Stations . | . . Recycling Units . | . . Scanalyzers . | . . Garrison Access . | . . Total Hacks 10 | . 10 Successful 3 | . 3 Failed 7 | . 7 Catastrophic 1 | . 1 Database Lockouts . | . . Manual 9 | . 9 Terminals 10 | . 10 Fabricators . | . . Repair Stations . | . . Recycling Units . | . . Scanalyzers . | . . Garrison Access . | . . Terminal Hacks 1 | . 1 Locate Traps 1 | . 1 Fabricator Hacks . | . . Repair Station Hacks . | . . Recycling Unit Hacks . | . . Scanalyzer . | . . Garrison Access Hacks . | . . Unauthorized Hacks 2 | . 2 Terminals 2 | . 2 Botnet 2 | . 2 Fabricators . | . . Repair Stations . | . . Recycling Units . | . . Scanalyzers . | . . Garrison Access . | . . Data Cores Recovered . | . . Used . | . . Hacking Detections 3 | . 3 Full Trace Events 1 | . 1 Feedback Events . | . . Feedback Blocked . | . . Robot Schematics Acquired . | . . Robots Built . | . . Authchips . | . . Time . | . . Total Robot Build Rating . | . . Part Schematics Acquired . | . . Parts Built . | . . Authchips . | . . Time . | . . Total Part Build Rating . | . . Parts Repaired . | . . Time . | . . Parts Recycled . | . . Recycled Matter . | . . Retrieved Matter . | . . Retrieved Components . | . . Parts Scanalyzed . | . . Part Schematics Acquired . | . . Parts Damaged . | . . Bothacking | -11 -10 ------------ Run | Scr Mat Used RIF Installer . | . . Robots Hacked . | . . Non-combat . | . . Combat . | . . Robot Hacks Applied . | . . Relay Couplers Released . | . . Fabnet Peak Effective % . | . . Robots Rewired . | . . Allies Hacked . | . . Hacks Repelled . | . . Allies | -11 -10 -------- Run | Scr Mat Total Allies . | . . Largest Group . | . . Highest-Rated Group . | . . Highest-Rated Ally . | . . Total Orders . | . . Ally Attacks . | . . Total Damage . | . . Kills . | . . Allies Corrupted . | . . Allies Melted . | . . Intel | -11 -10 ------- Run | Scr Mat Robot Analysis Total . | . . Derelict Logs Recovered . | . . Drone Launches . | . . Drone Recoveries . | . . Exploration | -11 -10 ------------- Run | Scr Mat Turns Passed 1037 | . 1037 Spaces Moved 414 | 1 413 Core . | . . Treads . | . . Legs 414 | 1 413 Wheels . | . . Hover . | . . Flight . | . . Fastest Speed 120 | 120 120 Average Speed 187 | 120 187 Slowest Speed 260 | 120 260 Overloaded Moves . | . . Propulsion Burnouts . | . . Robots Hopped . | . . Cave-ins Triggered . | . . Exploration Rate (%) 37 | 2 72 Regions Visited 1 Branch Regions . Pre-discovered Areas . | . . Known Exits Taken . | . . Unknown Exits Taken 1 | 1 . Scrap Searched . | . . Spaces Dug . | . . Terrain Destroyed 13 | . 13 Melee . | . . Projectile . | . . AOE 13 | . 13 Terrain Rammed . | . . Walls Destroyed . | . . Machines Disabled . | . . Actions | -11 -10 --------- Run | Scr Mat Total 548 | . 548 Wait 10 | . 10 Move 413 | . 413 Hop . | . . Pick Up 17 | . 17 Fast Attach 3 | . 3 Attach 5 | . 5 Detach 1 | . 1 Swap 9 | . 9 Drop 16 | . 16 Fire 63 | . 63 Melee . | . . Ram . | . . Kick 11 | . 11 Crush . | . . Escape Stasis . | . . Rewire . | . . Trap . | . . Miscellaneous . | . . Route ------- -11/Scrapyard -10/Materials (discovered 3 exits: [*Mat x2] / [*Min]) History --------- Turn | Location | Event 1 | -11/Scrapyard | Discovered new exit (range 0) 1 | -11/Scrapyard | Entered Materials 297 | -10/Materials | Discovered new exit (range 16) 308 | -10/Materials | Build established: Mutant 664 | -10/Materials | Discovered new exit (range 8) 775 | -10/Materials | Discovered new exit (range 9) 1019 | -10/Materials | Core integrity fell below 50% 1029 | -10/Materials | Core integrity fell below 20% 1038 | -10/Materials | Destroyed by G-47 Trooper with Particle Gun Last Messages --------------- 01001_ Dropped Particle Gun. 01001_ Dropped Broken Particle Gun. 01004_ Lgt. Nuclear Core destroyed. 01006_ Acquired 30 matter. 01008_ Kicked G-47 Trooper. 01009_ K-01 Serf collects debris. 01009_ Kicked G-47 Trooper. 01013_ K-01 Serf collects debris. 01013_ Kicked G-47 Trooper. 01014_ R-06 Scavenger collects Lgt. Ion Engine. 01015_ Kicked G-47 Trooper. 01016_ K-01 Serf collects debris. 01017_ Kicked G-47 Trooper. 01020_ K-01 Serf collects debris. 01021_ Kicked G-47 Trooper. 01024_ K-01 Serf collects debris. 01025_ Kicked G-47 Trooper out of the way. 01028_ K-01 Serf collects debris. 01032_ K-01 Serf destroyed. 01038_ Critical hit (Burn: +37). Map ----- +----------------------------------------------------+ | ????????????????????????????# [ #????? | | ????????????????????????????# = =